bitfinex-derivatives/quotes_ETHF0:USTF0_20240905
["timestamp","ask_amount","ask_price","bid_price","bid_amount"]
[1725557794704,0.42056,2378.1,2378.0,4.146]
[1725557795111,0.42056,2378.2,2378.0,4.56658]
[1725557795306,0.42056,2378.1,2378.0,0.42058]
[1725557796312,0.42056,2378.2,2378.0,0.42058]
[1725557796505,0.42053,2378.3,2377.8,1.05154]
[1725557796701,3.5834,2378.4,2378.3,0.42053]
[1725557796702,3.2078,2378.4,2378.3,0.42053]
[1725557797001,3.2078,2378.7,2378.4,1.05128]
[1725557797206,0.00630981,2378.8,2378.7,0.42046]
[1725557797410,0.00630981,2378.8,2378.7,5.67561]
[1725557797599,0.00630981,2378.8,2378.7,11.67561]
[1725557797911,0.00630981,2378.8,2378.7,5.67561]
[1725557798105,0.00630981,2378.8,2378.7,4.62446]
[1725557798305,0.00630981,2378.8,2378.7,10.62446]
[1725557798507,0.42034,2379.4,2379.2,0.42037]
[1725557798703,0.78173,2379.5,2379.2,0.42037]
[1725557798901,3.2078,2379.6,2378.9,4.25882]
[1725557799203,3.2078,2379.6,2379.4,0.42032]
[1725557799409,3.2078,2379.6,2379.3,0.42664981]
[1725557799712,3.6281,2379.6,2379.3,0.42664981]
[1725557799907,0.42032,2379.5,2379.3,0.00630981]
[1725557800307,4.00931,2379.6,2379.3,0.00630981]
[1725557801115,0.00630981,2379.7,2379.4,0.42032]
[1725557801613,0.42658981,2379.7,2379.3,0.78924981]
[1725557801813,0.00630981,2379.7,2379.4,0.42033]
[1725557802013,0.00630981,2379.7,2379.3,0.78924981]
[1725557802213,0.42658981,2379.7,2379.3,0.78924981]
[1725557802816,0.42658981,2379.7,2379.5,0.42031]
[1725557802817,0.00630981,2379.7,2379.5,0.42031]
[1725557803410,0.00630981,2379.7,2379.3,0.36890981]
[1725557803411,0.00630981,2379.7,2379.4,0.42032]
[1725557804214,0.00630981,2379.7,2379.3,0.36890981]
[1725557804507,0.00630981,2379.7,2379.6,0.4203]
[1725557804716,0.00630981,2379.7,2379.6,4.6227]
[1725557805414,0.211,2380.3,2380.2,0.42019]
[1725557805711,3.5848,2380.5,2380.2,0.42018]
[1725557805712,3.2078,2380.5,2380.2,0.42018]
[1725557806105,3.62794,2380.5,2380.2,0.42018]
[1725557806615,3.2078,2380.5,2380.0,0.3911]
[1725557806811,3.2078,2380.5,2380.0,0.7495]
[1725557807006,3.2078,2380.5,2380.3,0.42017]
[1725557807215,3.2078,2380.5,2380.2,0.42018]
[1725557807413,3.62795,2380.5,2380.1,0.4202]
[1725557807713,3.62794,2380.5,2380.1,0.4202]
[1725557808013,0.42016,2380.4,2380.1,0.42019]
[1725557808315,3.2078,2380.5,2380.0,0.81133]
[1725557808513,0.42017,2380.4,2380.1,0.42021]
[1725557808716,0.42017,2380.4,2380.0,0.3911]
[1725557808913,0.42017,2380.4,2380.0,0.81131]
[1725557809113,0.42017,2380.3,2380.0,0.81131]
[1725557809618,0.42017,2380.4,2380.1,0.4202]
[1725557810419,0.42017,2380.3,2380.0,0.81132]
[1725557810615,0.42016,2380.4,2380.1,0.4202]
[1725557810816,3.62795,2380.5,2380.1,0.4202]
[1725557811411,3.62795,2380.5,2380.0,0.81132]
[1725557811412,0.42018,2380.3,2380.0,0.81132]
[1725557811610,0.42016,2380.4,2380.1,0.42021]
[1725557812308,0.42018,2380.3,2380.0,0.81131]
[1725557812506,0.42016,2380.4,2380.1,0.4202]
[1725557812704,0.42016,2380.4,2380.0,0.3911]
[1725557812905,0.42016,2380.4,2380.1,0.4202]
[1725557813110,0.42017,2380.3,2380.1,0.4202]
[1725557813919,0.4202,2380.2,2379.9,0.42024]
[1725557814106,0.4202,2380.2,2379.9,0.42023]
[1725557814306,3.2078,2380.5,2379.8,0.7484]
[1725557814507,0.42016,2380.4,2380.2,0.42018]
[1725557814810,3.2078,2380.5,2380.3,0.42017]
[1725557815016,3.2078,2380.5,2380.1,3.88]
[1725557815315,0.42644981,2380.6,2380.5,0.42014]
[1725557815316,0.00630981,2380.6,2380.5,0.42014]
[1725557815721,0.00630981,2380.6,2380.5,4.62094]
[1725557816218,3.62781,2381.3,2380.9,0.42006]
[1725557816414,0.42002,2381.2,2381.0,0.3682]
[1725557816614,3.2078,2381.1,2381.0,0.3682]
[1725557817117,3.62783,2381.1,2381.0,0.3682]
[1725557817316,3.2078,2381.1,2381.0,0.3682]
[1725557817513,3.62783,2381.1,2381.0,0.3682]
[1725557817721,0.00413738,2381.3,2381.0,0.78824]
[1725557818115,0.00413738,2381.3,2381.0,0.3682]
[1725557818625,0.42003,2381.2,2381.0,0.3682]
[1725557819818,0.42003,2381.1,2381.0,0.3682]
[1725557820023,0.42003,2381.1,2380.8,0.00630981]
[1725557820411,0.00413738,2381.3,2380.8,0.42638981]
[1725557820616,0.00413738,2381.3,2380.9,0.42006]
[1725557820617,0.42414738,2381.3,2380.9,0.42006]
[1725557820910,0.00413738,2381.3,2380.8,0.00630981]
[1725557821524,3.2078,2381.1,2380.8,0.00630981]
[1725557821830,0.00413738,2381.3,2380.8,0.00630981]
[1725557822017,0.42006,2381.0,2380.8,0.00630981]
[1725557822224,0.42007,2380.9,2380.8,0.00630981]
[1725557822617,5.67025,2380.9,2380.8,0.00630981]
[1725557822921,4.62007,2380.9,2380.8,0.00630981]
[1725557823125,0.3898,2381.2,2380.8,0.00630981]
[1725557823313,3.95413738,2381.3,2380.8,2.90630981]
[1725557823314,0.00413738,2381.3,2380.8,2.90630981]
[1725557823627,0.00413738,2381.3,2381.0,0.42005]
[1725557823628,0.42413738,2381.3,2381.0,0.42005]
[1725557823825,0.42413738,2381.3,2380.9,0.77856]
[1725557823826,0.42001,2381.2,2380.9,0.77856]
[1725557824032,0.00413738,2381.3,2380.9,0.3585]
[1725557824325,0.3885,2382.0,2381.1,8.12789]
[1725557824512,0.41993,2381.7,2381.4,0.41997]
[1725557824717,0.41994,2381.7,2381.4,0.41997]
[1725557825129,0.4199,2381.9,2381.6,0.41993]
[1725557826715,3.5963,2382.0,2381.2,0.3635]
[1725557826915,1.04973,2381.9,2381.3,0.41999]
[1725557827117,1.04978,2381.8,2381.3,0.41999]
[1725557827421,3.2078,2381.4,2380.9,4.5045]
[1725557827618,0.42002,2381.2,2381.0,0.42005]
[1725557827919,0.3781,2381.3,2380.9,0.77856]
[1725557828119,0.42002,2381.2,2380.9,0.3585]
[1725557828319,0.42002,2381.2,2380.8,0.42638981]
[1725557828320,1.05004,2381.2,2380.8,0.42638981]
[1725557828536,0.42004,2381.1,2380.8,0.00630981]
[1725557828822,0.42004,2381.1,2380.8,0.42637981]
[1725557829324,0.42007,2380.9,2380.8,0.00630981]
[1725557830426,5.67025,2380.9,2380.8,0.00630981]
[1725557830620,0.42017,2380.3,2380.2,4.146]
[1725557830819,0.42015,2380.5,2379.9,3.2078]
[1725557831123,0.42018,2380.3,2379.9,3.62803]
[1725557831520,0.42018,2380.3,2380.0,0.42023]
[1725557831822,0.42648981,2380.3,2379.9,3.63434981]
[1725557832023,0.00630981,2380.3,2380.0,0.42021]
[1725557832219,0.00630981,2380.3,2380.1,0.42021]
[1725557832622,0.00630981,2380.3,2380.2,0.42019]
[1725557832923,3.7747,2381.2,2380.2,3.2078]
[1725557833123,0.42004,2381.1,2380.8,0.42008]
[1725557833317,5.00125,2381.5,2380.7,3.87]
[1725557833624,0.42003,2381.2,2380.8,0.42008]
[1725557833928,3.9513,2381.5,2380.7,3.87]
[1725557834117,0.42,2381.3,2381.0,0.42004]
[1725557834521,0.42001,2381.3,2381.0,0.42005]
[1725557834925,3.9513,2381.5,2381.0,0.42005]
[1725557834926,0.42001,2381.2,2381.0,0.42005]
[1725557835126,0.42001,2381.3,2381.0,0.42005]
[1725557835323,0.42002,2381.2,2381.0,0.42005]
[1725557836030,0.42001,2381.3,2381.0,0.42005]
[1725557836240,0.42001,2381.3,2380.7,3.87]
[1725557836526,3.2078,2381.5,2381.4,0.41998]
[1725557837127,3.2078,2381.5,2381.4,4.1992]
[1725557837532,3.2078,2381.5,2381.4,10.61918]
[1725557837722,0.4199,2381.9,2381.5,0.41995]
[1725557837930,3.2078,2381.8,2381.2,4.99820981]
[1725557838425,0.41993,2381.7,2381.3,0.41999]
[1725557838730,3.2078,2381.8,2381.2,1.18430981]
[1725557839037,3.2078,2381.8,2381.2,1.11990981]
[1725557839224,3.2078,2381.8,2381.5,0.41996]
[1725557839429,3.2078,2381.8,2381.3,3.87]
[1725557839430,3.62772,2381.8,2381.3,3.87]
[1725557840025,0.41995,2381.6,2381.3,0.41999]
[1725557840331,3.2078,2381.5,2381.2,0.39910981]
[1725557840630,0.41998,2381.4,2381.2,0.39910981]
[1725557841026,0.42,2381.3,2381.2,0.39910981]
[1725557841220,0.42,2381.3,2381.2,0.00630981]
[1725557841629,4.6192,2381.3,2381.2,0.00630981]
[1725557842533,5.6692,2381.3,2381.2,0.00630981]
[1725557844032,11.6692,2381.3,2381.2,0.00630981]
[1725557845626,5.6692,2381.3,2381.2,0.00630981]
[1725557845827,11.6692,2381.3,2381.2,0.00630981]
[1725557846528,5.6692,2381.3,2381.2,0.00630981]
[1725557846723,11.6692,2381.3,2381.2,0.00630981]
[1725557847025,5.6692,2381.3,2381.2,0.00630981]
[1725557847227,11.6692,2381.3,2381.2,0.00630981]
[1725557848539,4.25771,2381.5,2381.2,0.00630981]
[1725557848540,3.2078,2381.5,2381.2,0.00630981]
[1725557848742,0.41999,2381.4,2381.3,0.41999]
[1725557848925,3.62777,2381.5,2381.3,0.41999]
[1725557849240,3.62777,2381.5,2381.3,0.3893]
[1725557849241,0.41998,2381.4,2381.3,0.3893]
[1725557849426,3.2078,2381.5,2381.2,0.42631981]
[1725557849427,0.42,2381.3,2381.2,0.00630981]
[1725557851338,0.42,2381.3,2381.2,0.42631981]
[1725557851725,0.41997,2381.5,2381.2,4.20550981]
[1725557851928,0.41997,2381.5,2381.4,0.41998]
[1725557852133,4.62677,2381.9,2381.5,0.41996]
[1725557852333,0.41994,2381.7,2381.6,0.41994]
[1725557852529,0.41995,2381.6,2381.4,0.363]
[1725557852733,3.9969,2381.9,2381.4,0.363]
[1725557852926,3.2078,2381.9,2381.8,0.41991]
[1725557853239,0.41985,2382.2,2382.0,0.41987]
[1725557853439,0.3689,2382.3,2381.6,3.87]
[1725557853732,0.41992,2381.8,2381.5,4.56595]
[1725557854065,0.41993,2381.7,2381.5,0.41996]
[1725557854528,3.62772,2381.8,2381.5,0.41996]
[1725557854837,3.2078,2382.1,2381.4,0.363]
[1725557855032,0.3689,2382.3,2381.4,0.363]
[1725557855334,0.41987,2382.1,2381.8,0.41989]
[1725557855540,0.41987,2382.1,2381.9,0.41989]
[1725557855833,0.41988,2382.0,2381.8,0.4199]
[1725557856238,3.2078,2382.1,2381.4,4.509]
[1725557856438,0.3689,2382.3,2381.6,3.87]
[1725557856643,0.41987,2382.1,2381.9,0.41989]
[1725557857129,0.3689,2382.3,2381.8,0.4199]
[1725557857335,0.3689,2382.3,2381.9,0.41989]
[1725557857336,0.41987,2382.1,2381.9,0.41989]
[1725557857734,3.2078,2382.0,2381.4,4.509]
[1725557857936,0.41992,2381.8,2381.6,0.41994]
[1725557858129,0.41993,2381.7,2381.5,0.41995]
[1725557858740,3.2078,2382.0,2381.5,0.41995]
[1725557858741,1.46962,2381.9,2381.5,0.41995]
[1725557858945,1.04973,2381.9,2381.5,0.41996]
[1725557859437,0.41994,2381.6,2381.5,0.41996]
[1725557859941,0.41994,2381.6,2381.4,0.363]
[1725557859942,0.41996,2381.5,2381.4,0.363]
[1725557860141,0.42,2381.3,2381.2,0.00630981]
[1725557860338,0.41999,2381.4,2381.2,0.00630981]
[1725557860540,0.41999,2381.4,2381.2,0.42630981]
[1725557860541,0.41998,2381.4,2381.2,0.42630981]
[1725557860837,1.42618,2381.6,2381.2,0.00630981]
[1725557861046,0.41999,2381.4,2381.2,0.42631981]
[1725557861242,0.42,2381.3,2381.2,0.00630981]
[1725557861942,0.41997,2381.5,2381.2,4.20550981]
[1725557862141,3.2078,2381.7,2381.2,0.00630981]
[1725557862343,3.2078,2381.7,2381.6,0.41994]
[1725557862549,3.2078,2381.7,2381.5,0.41996]
[1725557862740,0.41995,2381.6,2381.5,0.78766]
[1725557863233,3.62774,2381.7,2381.5,0.78766]
[1725557863439,3.2078,2381.7,2381.5,0.78766]
[1725557863646,0.41994,2381.6,2381.5,0.78766]
[1725557863843,3.62774,2381.7,2381.5,0.78766]
[1725557864047,3.2078,2381.7,2381.5,0.78766]
[1725557864242,3.62774,2381.7,2381.5,0.78766]
[1725557864748,0.41994,2381.6,2381.5,0.78766]
[1725557865043,3.2078,2381.7,2381.5,0.78766]
[1725557865637,0.41994,2381.6,2381.5,0.78766]
[1725557866240,3.62774,2381.7,2381.5,0.78766]
[1725557866546,3.62774,2381.7,2381.5,0.78765]
[1725557867443,0.41994,2381.6,2381.5,0.78765]
[1725557867746,0.41994,2381.6,2381.5,0.3677]
[1725557867945,0.42,2381.3,2381.2,0.42631981]
[1725557868649,0.41999,2381.4,2381.3,0.42]
[1725557868847,0.41994,2381.6,2381.5,0.41995]
[1725557869542,3.2078,2381.7,2381.4,0.41997]
[1725557869543,0.41996,2381.5,2381.4,0.41997]
[1725557869941,0.41996,2381.6,2381.5,0.41996]
[1725557870142,0.41996,2381.5,2381.4,0.41997]
[1725557871255,4.25763,2381.7,2381.3,0.41998]
[1725557871256,0.41998,2381.4,2381.3,0.41998]
[1725557871743,0.41998,2381.5,2381.4,0.41998]
[1725557872336,0.41998,2381.5,2381.2,0.00630981]
[1725557872542,0.42,2381.3,2381.2,0.42630981]
[1725557872737,0.41999,2381.4,2381.3,0.41999]
[1725557873042,1.47,2381.3,2381.2,0.00630981]
[1725557873250,0.42,2381.3,2381.2,0.42631981]
[1725557873843,1.04989,2381.6,2381.5,0.41995]
[1725557873844,0.41996,2381.6,2381.5,0.41995]
[1725557874152,0.41996,2381.6,2381.5,0.41994]
[1725557874153,0.41995,2381.6,2381.5,0.41994]
[1725557874348,3.62773,2381.7,2381.6,0.41994]
[1725557874651,0.41989,2382.0,2381.9,0.41988]
[1725557875343,1.04961,2382.2,2381.8,0.4199]
[1725557875344,0.4199,2381.9,2381.8,0.4199]
[1725557875944,0.41992,2381.8,2381.7,0.41992]
[1725557878054,3.62768,2382.0,2381.9,0.41989]
[1725557878453,3.2078,2382.0,2381.9,0.41989]
[1725557878651,3.62767,2382.0,2381.9,0.41989]
[1725557879658,0.41989,2381.9,2381.8,3.3199]
[1725557879851,0.41989,2381.9,2381.8,0.4199]
[1725557880249,3.2078,2382.0,2381.6,2.9]
[1725557880449,5.00491,2382.0,2381.5,1.1164]
[1725557880750,0.41992,2381.8,2381.7,0.41992]
[1725557881354,0.41994,2381.7,2381.6,0.41993]
[1725557881751,0.41994,2381.6,2381.5,1.53635]
[1725557881951,0.41996,2381.5,2381.4,0.41998]
[1725557882252,0.41993,2381.7,2381.4,2.9]
[1725557882455,0.41993,2381.7,2381.6,0.41993]
[1725557882658,0.41992,2381.8,2381.7,0.41992]
[1725557882854,3.2078,2382.0,2381.6,2.9]
[1725557883049,3.62768,2382.0,2381.9,0.41989]
[1725557883451,3.62768,2382.0,2381.9,0.78059]
[1725557885062,3.62767,2382.0,2381.9,0.78059]
[1725557886756,8.45589,2382.0,2381.5,0.3644]
[1725557886959,4.25749,2382.0,2381.4,3.2564]
[1725557887153,4.25749,2382.0,2381.5,1.04991]
[1725557887359,0.41991,2381.9,2381.8,0.4199]
[1725557887757,0.41992,2381.8,2381.7,0.41991]
[1725557888157,3.2078,2382.0,2381.4,3.2564]
[1725557888361,5.35781,2382.3,2381.3,0.79059]
[1725557888362,0.41998,2381.4,2381.3,0.79059]
[1725557888559,0.41998,2381.4,2381.3,0.41999]
[1725557888762,0.41998,2381.4,2381.2,2.90630981]
[1725557888763,0.42,2381.3,2381.2,0.42630981]
[1725557889061,3.62779,2381.4,2381.3,0.42]
[1725557889258,3.62779,2381.4,2381.2,0.00630981]
[1725557889259,0.42,2381.3,2381.2,0.00630981]
[1725557889458,3.62779,2381.4,2381.2,0.42630981]
[1725557889664,3.2078,2381.4,2381.3,0.42]
[1725557890057,0.41996,2381.6,2381.4,0.41997]
[1725557890360,3.2078,2381.5,2381.4,0.41998]
[1725557891261,3.2078,2381.5,2381.2,2.90630981]
[1725557891465,3.62777,2381.5,2381.3,0.41999]
[1725557891764,1.04984,2381.7,2381.2,3.32630981]
[1725557891957,3.62779,2381.4,2381.2,0.42631981]
[1725557892154,0.42,2381.3,2381.2,0.42631981]
[1725557892359,0.42,2381.3,2381.2,0.00630981]
[1725557892858,1.8548,2381.3,2381.2,0.00630981]
[1725557893659,6.054,2381.3,2381.2,0.00630981]
[1725557895162,4.584,2381.3,2381.2,0.00630981]
[1725557895361,3.2078,2381.4,2381.2,0.00630981]
[1725557895773,3.2078,2381.4,2381.2,0.42631981]
[1725557895956,3.62779,2381.4,2381.2,0.42631981]
[1725557896162,3.2078,2381.4,2381.2,0.42631981]
[1725557896470,3.2078,2381.4,2381.3,3.32]
[1725557896657,0.78066,2381.6,2381.5,0.41996]
[1725557896857,0.41996,2381.5,2381.4,0.41997]
[1725557897062,0.78065,2381.6,2381.4,0.41997]
[1725557897269,0.41995,2381.6,2381.5,0.41996]
[1725557897768,0.41996,2381.5,2381.4,0.41997]
[1725557897967,0.41996,2381.5,2381.3,3.2797]
[1725557897968,0.41995,2381.6,2381.5,0.41996]
[1725557899967,0.41996,2381.5,2381.4,0.41997]
[1725557900173,0.41998,2381.4,2381.3,0.3797]
[1725557900672,3.62775,2381.6,2381.5,0.41996]
[1725557901575,3.2078,2381.6,2381.5,0.41996]
[1725557902274,3.62774,2381.6,2381.5,0.41996]
[1725557902866,3.2078,2381.6,2381.5,0.41996]
[1725557903573,3.62774,2381.6,2381.5,0.41996]
[1725557904071,3.2078,2381.6,2381.5,0.41996]
[1725557906268,3.62774,2381.6,2381.5,0.41996]
[1725557906572,0.41998,2381.4,2381.3,0.79968]
[1725557906776,0.41998,2381.4,2381.3,0.3797]
[1725557906972,1.47,2381.3,2381.2,0.00630981]
[1725557907167,0.42,2381.3,2381.2,0.42631981]
[1725557907372,1.40916,2381.4,2381.3,0.42]
[1725557907373,0.3592,2381.4,2381.3,0.42]
[1725557907983,4.5584,2381.4,2381.3,0.42]
[1725557908280,0.77919,2381.4,2381.3,0.42]
[1725557909068,3.62776,2381.6,2381.5,0.41996]
[1725557909564,0.42,2381.3,2381.2,0.00630981]
[1725557910263,7.827,2381.3,2381.2,0.00630981]
[1725557911468,15.09083106,2381.3,2381.2,0.00630981]
[1725557911671,9.09083106,2381.3,2381.2,0.00630981]
[1725557912170,16.14083106,2381.3,2381.2,0.00630981]
[1725557912573,0.42008,2380.8,2380.7,4.146]
[1725557912771,3.62788,2380.9,2380.7,0.4201]
[1725557913073,1.05009,2381.1,2380.6,0.3722]
[1725557913277,3.62788,2380.9,2380.7,0.4201]
[1725557913677,0.42636981,2381.0,2380.8,0.42008]
[1725557914379,0.42636981,2381.0,2380.7,0.42009]
[1725557914579,0.42007,2380.9,2380.7,0.42009]
[1725557914875,0.42636981,2381.0,2380.8,0.42008]
[1725557916874,0.00630981,2381.0,2380.7,0.42009]
[1725557917075,3.2078,2380.9,2380.7,0.42009]
[1725557917481,0.4201,2380.8,2380.6,0.42641981]
[1725557917972,3.62788,2380.9,2380.7,0.4201]
[1725557918771,0.42008,2380.8,2380.7,0.4201]
[1725557918976,0.42008,2380.8,2380.6,0.42641981]
[1725557919177,0.4201,2380.7,2380.6,0.42641981]
[1725557920273,0.4201,2380.8,2380.6,0.42641981]
[1725557920476,0.4201,2380.8,2380.7,0.4201]
[1725557921172,0.00630981,2381.0,2380.8,1.05022]
[1725557921484,0.00630981,2381.0,2380.9,0.42007]
[1725557921679,0.00630981,2381.0,2380.9,0.80027]
[1725557922883,0.00630981,2381.0,2380.9,5.00027]
[1725557925487,0.00630981,2381.0,2380.9,0.80027]
[1725557926883,0.42635981,2381.0,2380.9,0.80027]
[1725557927092,0.42635981,2381.0,2380.9,0.3802]
[1725557927791,0.00630981,2381.0,2380.9,0.80027]
[1725557928093,0.42635981,2381.0,2380.9,0.80027]
[1725557928283,0.42635981,2381.0,2380.9,0.3802]
[1725557928586,0.42007,2380.9,2380.8,0.42007]
[1725557928986,1.05643981,2381.0,2380.7,0.4201]
[1725557929185,0.4201,2380.7,2380.6,3.57870981]
[1725557929380,0.4201,2380.8,2380.7,0.4201]
[1725557930177,0.00630981,2381.0,2380.6,0.37090981]
[1725557930483,0.42008,2380.9,2380.8,0.42008]
[1725557931089,0.42636981,2381.0,2380.9,0.42007]
[1725557931280,0.00630981,2381.0,2380.9,0.42007]
[1725557932477,0.00630981,2381.0,2380.9,8.57025]
[1725557932987,0.00630981,2381.0,2380.9,9.62043]
[1725557935290,0.00630981,2381.0,2380.9,8.57025]
[1725557935481,0.00630981,2381.0,2380.9,0.42007]
[1725557935794,0.42637981,2381.0,2380.9,0.42007]
[1725557936287,0.00630981,2381.0,2380.9,0.42007]
[1725557936494,0.00630981,2381.0,2380.9,1.47025]
[1725557936689,0.00630981,2381.0,2380.9,9.62043]
[1725557937985,0.00630981,2381.0,2380.9,8.57025]
[1725557938185,0.00630981,2381.0,2380.9,1.47025]
[1725557938897,0.00630981,2381.0,2380.9,0.42007]
[1725557939393,0.42635981,2381.0,2380.9,0.42007]
[1725557940688,0.00630981,2381.0,2380.9,0.42007]
[1725557941186,0.00630981,2381.0,2380.9,9.62043]
[1725557942393,0.00630981,2381.0,2380.9,0.42007]
[1725557942591,0.00630981,2381.0,2380.8,0.42007]
[1725557942592,4.20630981,2381.0,2380.8,0.42007]
[1725557942895,3.2078,2380.9,2380.8,0.42007]
[1725557944390,3.62787,2380.9,2380.8,0.42007]
[1725557944596,3.2078,2380.9,2380.8,0.42007]
[1725557945498,3.2078,2380.9,2380.8,6.72051]
[1725557945791,0.00630981,2381.0,2380.9,2.52043]
[1725557945992,0.00630981,2381.0,2380.9,8.57025]
[1725557946195,0.00630981,2381.0,2380.6,0.37090981]
[1725557946400,0.42009,2380.8,2380.7,0.4201]
[1725557946697,0.81096981,2381.0,2380.8,0.42007]
[1725557946886,0.81096981,2381.0,2380.9,0.42007]
[1725557947292,0.39090981,2381.0,2380.9,0.42007]
[1725557947700,0.81095981,2381.0,2380.9,0.42007]
[1725557948303,0.81095981,2381.0,2380.8,0.42007]
[1725557948498,0.81095981,2381.0,2380.9,0.42007]
[1725557948696,0.00630981,2381.0,2380.9,0.42007]
[1725557949296,0.42635981,2381.0,2380.9,0.42007]
[1725557950106,0.42635981,2381.0,2380.6,4.32120981]
[1725557950403,0.00630981,2381.0,2380.9,0.42007]
[1725557950697,0.42007,2380.9,2380.8,0.42007]
[1725557950896,0.00630981,2381.0,2380.7,0.42009]
[1725557951104,3.5884,2380.8,2380.6,0.00630981]
[1725557951296,3.5884,2380.8,2380.7,0.4201]
[1725557951491,3.2078,2380.8,2380.7,0.4201]
[1725557953397,3.62788,2380.8,2380.7,0.4201]
[1725557953897,3.62788,2380.8,2380.6,0.42641981]
[1725557954198,0.4201,2380.7,2380.6,0.00630981]
[1725557954605,0.7798,2380.7,2380.6,0.42642981]
[1725557954801,0.7798,2380.7,2380.6,0.00630981]
[1725557955900,0.3597,2380.7,2380.6,0.42642981]
[1725557956106,0.4201,2380.7,2380.6,0.00630981]
[1725557956807,6.72142,2380.7,2380.6,0.00630981]
[1725557957100,6.05266,2380.7,2380.6,0.00630981]
[1725557957303,3.62789,2380.8,2380.6,0.00630981]
[1725557957493,3.62789,2380.8,2380.6,0.42641981]
[1725557957699,0.4201,2380.7,2380.6,0.00630981]
[1725557957893,3.6279,2380.8,2380.6,0.42641981]
[1725557958203,3.6279,2380.8,2380.6,0.00630981]
[1725557958204,0.4201,2380.7,2380.6,0.00630981]
[1725557958507,3.6279,2380.8,2380.6,0.42642981]
[1725557959908,0.4201,2380.7,2380.6,0.00630981]
[1725557960409,3.62789,2380.8,2380.7,0.4201]
[1725557961108,3.2078,2380.8,2380.7,0.4201]
[1725557961301,3.2078,2380.8,2380.7,3.7133]
[1725557962213,3.2078,2380.8,2380.7,0.8133]
[1725557963411,3.2078,2380.8,2380.7,7.9133]
[1725557963810,3.2078,2380.8,2380.7,8.96356]
[1725557964008,0.00630981,2381.0,2380.9,1.47025]
[1725557964309,0.00630981,2381.0,2380.9,4.37025]
[1725557964517,0.00630981,2381.0,2380.9,8.57025]
[1725557964700,0.00630981,2381.0,2380.9,8.94605]
[1725557966713,70.09497745,2390.7,2381.6,0.41994]
[1725557966714,4.25752,2382.0,2381.6,0.41994]
[1725557966912,0.3751,2381.9,2381.7,0.41992]
[1725557967111,0.3751,2381.9,2381.8,0.41991]
[1725557967310,0.79499,2381.9,2381.7,1.15991]
[1725557967707,0.3751,2381.9,2381.7,0.74]
[1725557967910,3.2078,2382.0,2381.7,3.64]
[1725557968106,3.2078,2382.0,2381.8,0.41991]
[1725557968809,3.62767,2382.0,2381.7,4.05991]
[1725557969212,0.41989,2381.9,2381.7,0.74]
[1725557969514,0.79189,2381.9,2381.7,0.74]
[1725557969711,0.41993,2381.7,2381.6,2.9]
[1725557969913,0.7625,2381.9,2381.5,0.41996]
[1725557970107,0.41991,2381.8,2381.5,0.41996]
[1725557970307,3.62774,2381.7,2381.4,1.17007]
[1725557970508,3.62773,2381.7,2381.4,1.17007]
[1725557971507,0.41993,2381.7,2381.4,1.17007]
[1725557972106,0.41994,2381.6,2381.4,0.79487]
[1725557972510,1.81225,2381.9,2381.4,0.79487]
[1725557972707,0.41994,2381.7,2381.4,0.79487]
[1725557973111,0.41994,2381.7,2381.4,0.3749]
[1725557973420,3.62775,2381.6,2381.4,0.79487]
[1725557973805,3.2078,2381.6,2381.4,0.79487]
[1725557974213,3.62774,2381.6,2381.4,0.79487]
[1725557974420,0.41996,2381.5,2381.3,0.3814]
[1725557974719,0.77696,2381.5,2381.3,0.80139]
[1725557974915,0.41998,2381.4,2381.3,0.3814]
[1725557975311,0.41998,2381.4,2381.2,0.8039]
[1725557975819,0.77697,2381.5,2381.3,0.41999]
[1725557976318,0.41998,2381.4,2381.2,0.8039]
[1725557976816,0.42,2381.3,2381.2,0.3839]
[1725557977114,0.41999,2381.4,2381.2,0.80391]
[1725557977809,3.2078,2381.3,2381.1,0.3879]
[1725557978017,0.42004,2381.1,2380.9,0.81266]
[1725557978209,3.5686,2381.3,2381.0,0.42005]
[1725557978517,0.42003,2381.2,2381.0,0.42005]
[1725557979315,1.05006,2381.2,2380.9,0.3926]
[1725557979614,3.5686,2381.3,2380.9,0.81266]
[1725557979615,0.79274,2381.1,2380.9,0.81266]
[1725557980705,0.3727,2381.1,2381.0,0.42005]
[1725557980911,3.6278,2381.3,2381.1,0.42002]
[1725557981420,3.2078,2381.3,2380.9,3.2926]
[1725557981717,3.6278,2381.3,2381.1,0.42003]
[1725557982415,0.42003,2381.2,2381.0,0.42005]
[1725557982614,0.42004,2381.1,2380.9,3.71265]
[1725557982916,4.63311,2381.3,2380.9,3.2926]
[1725557983105,0.42005,2381.1,2380.9,3.71267]
[1725557983517,0.42005,2381.0,2380.9,3.2926]
[1725557984711,0.42004,2381.1,2380.9,3.71267]
[1725557984919,1.05004,2381.2,2381.0,0.42005]
[1725557984920,0.42003,2381.2,2381.0,0.42005]
[1725557985313,3.2078,2381.3,2381.0,0.42004]
[1725557985527,0.42003,2381.2,2381.0,0.42004]
[1725557986427,3.2078,2381.3,2380.9,3.2926]
[1725557986619,3.6278,2381.3,2381.1,0.42002]
[1725557987122,3.6278,2381.3,2381.2,0.42001]
[1725557987421,0.41997,2381.5,2381.3,0.42]
[1725557987613,0.41997,2381.5,2381.4,0.3744]
[1725557987808,3.2078,2381.6,2381.4,0.3744]
[1725557988210,0.41996,2381.5,2381.4,0.3744]
[1725557988415,3.2078,2381.6,2381.4,0.3744]
[1725557988617,3.2078,2381.6,2381.4,0.79437]
[1725557989211,3.62774,2381.6,2381.4,0.79437]
[1725557990325,3.2078,2381.6,2381.5,0.41996]
[1725557991910,3.62768,2382.0,2381.7,0.41992]